Cogmind - Beta 13 @@@ ROGUE MODE // 2024.04.23 @ 18:26:54 Player: Zach Petti Result: Self-destructed Performance ------------- Evolutions (2) 1000 Regions Visited (4) 800 Robots Destroyed (15) 75 Value Destroyed (593) 593 Prototype IDs (1) 20 Alien Tech Used (0) 0 Bonus (0) 0 TOTAL SCORE: 2488 Bonus ------- None Cogmind --------- Core Integrity 447/550 Matter 300/300 Energy 280/280 System Corruption 0% Temperature Cool (1) Movement Walking (190) Ox1 Location -8/Materials Parts ------- > --- POWER (2) -------- Cooled Ion Engine > --- PROPULSION (2) --- Improved Aluminum Leg Improved Aluminum Leg > --- UTILITY (5) ------ Heat Sink Large Storage Unit Advanced Targeting Computer Improved Light Armor Plating > --- WEAPON (2) ------- (None) > --- INVENTORY (15) --- Ion Engine Ion Engine Aluminum Leg Aluminum Leg Aluminum Leg Aluminum Leg Small Storage Unit Medium Armor Plating EM Pulse Gun Particle Cannon Heavy Assault Rifle Grenade Launcher Peak State ------------ > --- POWER ------------ Cooled Ion Engine > --- PROPULSION ------- Improved Aluminum Leg Improved Aluminum Leg > --- UTILITY ---------- Heat Sink Heat Sink Large Storage Unit Advanced Targeting Computer Improved Light Armor Plating > --- WEAPON ----------- Heavy EM Pulse Gun Shock Rifle > --- INVENTORY -------- Ion Engine Ion Engine Aluminum Leg Aluminum Leg Aluminum Leg Aluminum Leg Small Storage Unit Medium Armor Plating EM Pulse Gun Particle Cannon Heavy Assault Rifle Grenade Launcher [Rating: 22] Favorites ----------- Power Ion Engine Engine Ion Engine Propulsion Aluminum Leg Leg Aluminum Leg Utility Targeting Computer Device Heat Sink Storage Small Storage Unit Processor Targeting Computer Protection Medium Armor Plating Weapon Heavy Assault Rifle Energy Gun Heavy EM Pulse Gun Energy Cannon Particle Cannon Ballistic Gun Heavy Assault Rifle Launcher Grenade Launcher Build | -11 -10 -10 -9 -8 ------- Run | Yrd Mat Min Mat Mat Slots Evolved 4 | . . . 2 2 Power 1 | . . . . 1 Propulsion . | . . . . . Utility 3 | . . . 2 1 Weapon . | . . . . . Parts Attached 28 | 6 10 . 8 4 Power 3 | 1 1 . 1 . Engine 3 | 1 1 . 1 . Core . | . . . . . Reactor . | . . . . . Propulsion 7 | 2 3 . 2 . Treads . | . . . . . Leg 7 | 2 3 . 2 . Wheel . | . . . . . Hover . | . . . . . Flight . | . . . . . Utility 9 | 1 1 . 4 3 Device 2 | . . . 1 1 Storage 2 | 1 . . 1 . Processor 3 | . 1 . 1 1 Hackware . | . . . . . Protection 2 | . . . 1 1 Artifact . | . . . . . Weapon 9 | 2 5 . 1 1 Energy Gun 6 | 2 2 . 1 1 Energy Cannon 1 | . 1 . . . Ballistic Gun 1 | . 1 . . . Ballistic Cannon . | . . . . . Launcher 1 | . 1 . . . Special Weapon . | . . . . . Impact Weapon . | . . . . . Slashing Weapon . | . . . . . Piercing Weapon . | . . . . . Special Melee Weapon . | . . . . . Unidentified Prototypes 1 | . . . 1 . Corrupted Parts 1 | . . . 1 . System Corruption 3 | . . . 3 . Parts Lost 3 | . . . . 3 Power . | . . . . . Propulsion . | . . . . . Utility 1 | . . . . 1 Weapon 2 | . . . . 2 Highest Loss Streak 3 | . . . . 3 To Critical Strikes . | . . . . . Average Slot Usage (%) 97 | . 98 100 99 87 Engine 12 | . 14 14 11 9 Leg 24 | . 28 28 22 18 Device 3 | . . . 5 17 Storage 12 | . 14 14 11 9 Processor 15 | . 12 14 22 9 Protection 2 | . . . 5 7 Energy Gun 12 | . 10 14 11 14 Energy Cannon 1 | . 4 . . . Ballistic Gun 9 | . 7 14 11 3 Launcher 1 | . 5 . . . Naked Turns . | . . . . . Heaviest Build 39 | 13 17 15 38 39 Greatest Support 26 | 20 20 20 26 26 Greatest Overweight (x) 1 | 1 . . 1 1 Average Overweight (x) . | . . . . 1 Largest Inventory Capacity 15 | 8 8 8 15 15 Average Capacity 10 | 7 8 8 13 15 Most Carried 12 | 5 8 8 12 12 Average Carried 8 | 3 6 7 9 11 Final Capacity 15 | 8 8 8 15 15 Final Carried 12 | 4 8 8 12 12 Class Distribution -------------------- 100% | Mutant Dominant Class ---------------- Mutant | -10/Materials Mutant | -10/Mines Mutant | -9/Materials Mutant | -8/Materials Resources | -11 -10 -10 -9 -8 ----------- Run | Yrd Mat Min Mat Mat Matter Collected 653 | 215 203 33 167 35 Remotely . | . . . . . Salvage Created 725 | . 234 . 284 207 Parts 39 | . 9 . 16 14 Haulers Intercepted . | . . . . . Recyclers Shooed . | . . . . . Parts Field Recycled . | . . . . . Retrieved Matter . | . . . . . Parts Self-Destructed . | . . . . . Prevented . | . . . . . Kills | -11 -10 -10 -9 -8 ------- Run | Yrd Mat Min Mat Mat Combat Hostiles Destroyed 14 | . 5 . 6 3 Guns 14 | . 5 . 6 3 Classes Destroyed 5 | . 1 . 1 3 Watcher 1 | . . . . 1 Grunt 9 | . 5 . 4 . Brawler 1 | . . . . 1 Sentry 3 | . . . 2 1 Hunter 1 | . . . . 1 Best Kill Streak 4 | . 2 . 2 4 Combat Bots Only 3 | . 2 . 2 3 Max Kills in Single Turn 2 | . 1 . 2 1 Gunslinging 1 | . . . 1 . Exploded . | . . . . . Melee . | . . . . . Uniques/NPCs Destroyed . | . . . . . Combat | -11 -10 -10 -9 -8 -------- Run | Yrd Mat Min Mat Mat Hostile Shots Fired 103 | . 37 . 32 34 Missed 24 | . 7 . 10 7 Damage Taken 1143 | . 404 . 306 433 Core 270 | . 108 . 59 103 Absorbed by Shields . | . . . . . Core Remaining (%) 80 | 100 . 56 85 . Volleys Fired 56 | . 19 1 23 13 Largest 2 | . 2 2 2 2 Hottest 95 | . 91 63 68 95 Shots Fired 98 | . 34 2 38 24 Gun 95 | . 31 2 38 24 Cannon 3 | . 3 . . . Launcher . | . . . . . Special . | . . . . . Kinetic 29 | . 5 1 23 . Thermal 25 | . 25 . . . Explosive . | . . . . . Electromagnetic 44 | . 4 1 15 24 Robot Hit Streak 13 | . 6 6 13 9 Robot Miss Streak 2 | . 2 . 2 1 Penetration Max . | . . . . . Secondary Targets 3 | . 1 . 1 1 Max Gunslinging Chain 1 | . 1 . 1 1 Shots Hit Robots 68 | . 25 2 25 16 Core Hits 31 | . 11 1 10 9 Critical Kills . | . . . . . Critical Parts Destroyed 1 | . . . 1 . Critical Strikes 2 | . 1 . 1 . Burn 1 | . 1 . . . Destroy 1 | . . . 1 . Melee Attacks . | . . . . . Impact . | . . . . . Slashing . | . . . . . Piercing . | . . . . . Sneak Attacks . | . . . . . Combat Hostiles . | . . . . . Follow-up Attacks . | . . . . . Damage Inflicted 930 | . 319 24 322 265 Guns 888 | . 277 24 322 265 Cannons 42 | . 42 . . . Explosions . | . . . . . Melee . | . . . . . Ramming . | . . . . . Kinetic 236 | . 57 14 165 . Thermal 235 | . 235 . . . Explosive . | . . . . . Electromagnetic 459 | . 27 10 157 265 Impact . | . . . . . Slashing . | . . . . . Piercing . | . . . . . Highest Corruption 6 | . 2 2 6 . Average Corruption 2 | . 2 2 4 . Corruption Purged . | . . . . . Corruption Blocked . | . . . . . Effects 20 | . 6 6 8 . Message Errors 4 | . . 3 1 . Matter Fused 5 | . 1 2 2 . Heat Flow Errors 4 | . 1 1 2 . Energy Discharges 3 | . 1 . 2 . Data Loss (minor) 1 | . 1 . . . Misfires 2 | . 2 . . . Weapon Failures 1 | . . . 1 . Overload Shots . | . . . . . Overflow Damage . | . . . . . Projectiles . | . . . . . Explosions . | . . . . . Melee . | . . . . . Knockbacks . | . . . . . Impact . | . . . . . Kinetic . | . . . . . Secondary . | . . . . . Self-Inflicted Damage . | . . . . . Shots . | . . . . . Rammed . | . . . . . Targets Rammed . | . . . . . Kicked . | . . . . . Crushed . | . . . . . Highest Temperature 490 | . 490 255 182 26 Average Temperature 145 | . 201 112 38 12 Received Heat Transfer 570 | . 207 . 129 234 Effects 11 | . 11 . . . Shutdowns 1 | . 1 . . . Energy Bleed 2 | . 2 . . . Interference 1 | . 1 . . . Matter Decay 1 | . 1 . . . Short Circuit 1 | . 1 . . . Damage (minor) 2 | . 2 . . . Damage (major) 3 | . 3 . . . Siege Activations . | . . . . . Robots Corrupted . | . . . . . Combat Hostiles . | . . . . . Parts Fried 2 | . . . . 2 Impact Corruptions . | . . . . . Robots Melted . | . . . . . Combat Hostiles . | . . . . . Parts Melted 4 | . 4 . . . Heat Transferred 680 | . 680 . . . Parts Sabotaged . | . . . . . Parts Stolen . | . . . . . Parts Stripped . | . . . . . Power Chain Reactions . | . . . . . Alert | -11 -10 -10 -9 -8 ------- Run | Yrd Mat Min Mat Mat Peak Influence 202 | . 127 . 202 129 Initial 27 | . . . . 27 Average 37 | . 35 . 74 41 Maximum Alert Level 1 | . . . 1 . Low Security (%) 96 | 100 100 100 87 100 Level 1 3 | . . . 12 . Level 2 . | . . . . . Level 3 . | . . . . . Level 4 . | . . . . . Level 5 . | . . . . . High Security . | . . . . . Max Security . | . . . . . Squads Dispatched 2 | . . . 2 . Investigation 1 | . . . 1 . Extermination . | . . . . . Reinforcement 1 | . . . 1 . Assault . | . . . . . Garrison . | . . . . . Intercept . | . . . . . Searches Triggered . | . . . . . Construction Impeded . | . . . . . Haulers Reinforced . | . . . . . Active Scanning Responses . | . . . . . Cargo Convoy Interrupts . | . . . . . Stealth | -11 -10 -10 -9 -8 --------- Run | Yrd Mat Min Mat Mat Distress Signals 2 | . . . 1 1 Communications Jammed . | . . . . . Distress Signals . | . . . . . Times Spotted 26 | . 6 1 10 9 Peak Tracking Total 5 | . 2 . 4 5 Tactical Retreats . | . . . . . Traps | -11 -10 -10 -9 -8 ------- Run | Yrd Mat Min Mat Mat Traps Triggered 5 | . 3 . 2 . Indirectly . | . . . . . Trap Hack Attempts . | . . . . . Triggered . | . . . . . Disarmed . | . . . . . Reprogrammed . | . . . . . Reused . | . . . . . Traps Extracted . | . . . . . Installed . | . . . . . Triggered . | . . . . . Machines | -11 -10 -10 -9 -8 ---------- Run | Yrd Mat Min Mat Mat Machines Disabled 1 | . . . 1 . Max in Single Turn 1 | . . . 1 . Machines Repaired . | . . . . . Machines Dismantled . | . . . . . Machines Sabotaged . | . . . . . Overloaded Fab Kills . | . . . . . Hacking | -11 -10 -10 -9 -8 --------- Run | Yrd Mat Min Mat Mat Machines Accessed 6 | . 3 . 3 . Terminals 5 | . 3 . 2 . Fabricators . | . . . . . Repair Stations 1 | . . . 1 . Recycling Units . | . . . . . Scanalyzers . | . . . . . Garrison Access . | . . . . . Total Hacks 11 | . 5 . 6 . Successful 6 | . 3 . 3 . Failed 5 | . 2 . 3 . Catastrophic 2 | . 1 . 1 . Database Lockouts . | . . . . . Manual . | . . . . . Terminals 8 | . 5 . 3 . Fabricators . | . . . . . Repair Stations 3 | . . . 3 . Recycling Units . | . . . . . Scanalyzers . | . . . . . Garrison Access . | . . . . . Terminal Hacks 5 | . 3 . 2 . Record 1 | . 1 . . . Robot Analysis 1 | . . . 1 . Locate Traps 1 | . 1 . . . Investigation Status 1 | . . . 1 . Registered Components 1 | . 1 . . . Fabricator Hacks . | . . . . . Repair Station Hacks 1 | . . . 1 . Scan Component 1 | . . . 1 . Recycling Unit Hacks . | . . . . . Scanalyzer . | . . . . . Garrison Access Hacks . | . . . . . Unauthorized Hacks . | . . . . . Terminals . | . . . . . Fabricators . | . . . . . Repair Stations . | . . . . . Recycling Units . | . . . . . Scanalyzers . | . . . . . Garrison Access . | . . . . . Data Cores Recovered . | . . . . . Used . | . . . . . Hacking Detections 5 | . 2 . 3 . Full Trace Events 2 | . 1 . 1 . Feedback Events . | . . . . . Feedback Blocked . | . . . . . Robot Schematics Acquired . | . . . . . Robots Built . | . . . . . Authchips . | . . . . . Time . | . . . . . Total Robot Build Rating . | . . . . . Part Schematics Acquired . | . . . . . Parts Built . | . . . . . Authchips . | . . . . . Time . | . . . . . Total Part Build Rating . | . . . . . Parts Repaired . | . . . . . Time . | . . . . . Parts Recycled . | . . . . . Recycled Matter . | . . . . . Retrieved Matter . | . . . . . Retrieved Components . | . . . . . Parts Scanalyzed . | . . . . . Part Schematics Acquired . | . . . . . Parts Damaged . | . . . . . Bothacking | -11 -10 -10 -9 -8 ------------ Run | Yrd Mat Min Mat Mat Used RIF Installer . | . . . . . Robots Hacked . | . . . . . Non-combat . | . . . . . Combat . | . . . . . Robot Hacks Applied . | . . . . . Relay Couplers Released . | . . . . . Fabnet Peak Effective % . | . . . . . Robots Rewired . | . . . . . Allies Hacked . | . . . . . Hacks Repelled . | . . . . . Allies | -11 -10 -10 -9 -8 -------- Run | Yrd Mat Min Mat Mat Total Allies . | . . . . . Largest Group . | . . . . . Highest-Rated Group . | . . . . . Highest-Rated Ally . | . . . . . Total Orders . | . . . . . Ally Attacks . | . . . . . Total Damage . | . . . . . Kills . | . . . . . Allies Corrupted . | . . . . . Allies Melted . | . . . . . Intel | -11 -10 -10 -9 -8 ------- Run | Yrd Mat Min Mat Mat Robot Analysis Total 1 | . . . 1 . Derelict Logs Recovered 3 | . . 3 . . Drone Launches . | . . . . . Drone Recoveries . | . . . . . Exploration | -11 -10 -10 -9 -8 ------------- Run | Yrd Mat Min Mat Mat Turns Passed 1777 | 80 496 444 532 225 Spaces Moved 1090 | 58 349 351 238 94 Core 11 | 11 . . . . Treads . | . . . . . Legs 1079 | 47 349 351 238 94 Wheels . | . . . . . Hover . | . . . . . Flight . | . . . . . Fastest Speed 50 | 50 120 120 120 190 Average Speed 139 | 111 120 120 185 190 Slowest Speed 190 | 120 120 120 190 190 Overloaded Moves . | . . . . . Propulsion Burnouts . | . . . . . Robots Hopped . | . . . . . Cave-ins Triggered . | . . . . . Exploration Rate (%) 35 | 3 49 87 25 11 Regions Visited 4 Branch Regions 1 Pre-discovered Areas 2 | . . 2 . . Known Exits Taken . | . . . . . Unknown Exits Taken 4 | 1 1 1 1 . Scrap Searched 1 | . . 1 . . Spaces Dug . | . . . . . Terrain Destroyed . | . . . . . Melee . | . . . . . Projectile . | . . . . . AOE . | . . . . . Terrain Rammed . | . . . . . Walls Destroyed . | . . . . . Machines Disabled . | . . . . . Actions | -11 -10 -10 -9 -8 --------- Run | Yrd Mat Min Mat Mat Total 1247 | 73 395 373 291 115 Wait 35 | . 5 18 12 . Move 1086 | 57 348 350 237 94 Hop . | . . . . . Pick Up 32 | 10 9 2 8 3 Fast Attach . | . . . . . Attach 13 | 6 2 . 3 2 Detach 1 | . . . 1 . Swap 15 | . 8 . 5 2 Drop 9 | . 4 2 2 1 Fire 56 | . 19 1 23 13 Melee . | . . . . . Ram . | . . . . . Kick . | . . . . . Crush . | . . . . . Escape Stasis . | . . . . . Rewire . | . . . . . Trap . | . . . . . Miscellaneous . | . . . . . Route ------- -11/Scrapyard -10/Materials (discovered 2 exits: [*Min x2]) -10/Mines (discovered 3 exits: *Mat x2 / Sub) -9/Materials -8/Materials History --------- Turn | Location | Event 15 | -11/Scrapyard | Discovered new exit (range 15) 81 | -11/Scrapyard | Entered Materials 112 | -10/Materials | Discovered new exit (range 15) 329 | -10/Materials | Build established: Mutant 515 | -10/Materials | Discovered new exit (range 10) 577 | -10/Materials | Entered Mines 591 | -10/Mines | Joined a pair of Derelicts in attacking an 0b10 outpost 628 | -10/Mines | YI-UF0 nonchalantly dropped a Grenade Launcher on the ground 738 | -10/Mines | Discovered new exit (range 8) 783 | -10/Mines | Found a hidden stash of uninstalled traps 825 | -10/Mines | Learned location of Storage (-8) 904 | -10/Mines | Learned Materials emergency access door positions 934 | -10/Mines | Identified exit to Subcaves 935 | -10/Mines | Discovered new exit (range 7) 1021 | -10/Mines | Entered Materials 1021 | -9/Materials | Evolved 2 slots: Utility x2 1305 | -9/Materials | Discovered new exit (range 16) 1553 | -9/Materials | Entered another Materials area 1553 | -8/Materials | Evolved 2 slots: Power x1, Utility x1 1778 | -8/Materials | Self-destructed Last Messages --------------- Y-45 Defender destroyed. W-25 Informer destroyed. K-01 Serf collects debris. Penetrated by Slug. Heat Sink destroyed. H-55 Commando destroyed. K-01 Serf collects debris. B-36 Bruiser destroyed. Switching to secondary target: G-47 Trooper. K-01 Serf collects debris. Critical hit (Burn: +37). G-47 Trooper misfires. K-01 Serf collects debris. Acquired 35 matter. Hvy. EM Pulse Gun destroyed. K-01 Serf collects debris. Critical hit (Burn: +37). K-01 Serf collects debris. Shock Rifle destroyed. K-01 Serf collects debris. Map ----- +----------------------------------------------------+ | ?????????????????????????????????????? | | ?????????????????????????????????????? | | ?????????????????????????????????????? | | ?????????????????????????????????????? | | ?????????????????????????????????????? | | ?????????????????????????????????????? | | ?????????????????????????????????????? | | ?????????????????????????????????????? | | ?????? ??????????????????????????????? | | ?????# ?????????????????????????????? | | ?????# ????????????????????????????? | | ?????# ????????????????????????????? | | ?????# ######??????????????????????? | | ?????# ar ! ??????????????????????? | | ?!!??# =%#??????????????????????? | | ??! ?# ggg g#??????????????????????? | | ??? # g/#??????????????????????? | | ???? + %#??????????????????????? | | ?????# =T??????????????????????? | | ?????+ #??????????????????????? | | ????????# * #??????????????????????? | | ????????#=%[ #??????????????????????? | | ????????#![ !!#??????????????????????? | | ????????# * #??#####???????????????? | | ????????# k=#? #???????????????? | | ?????#### @#? /!! #???????????????? | | ?????#^ ^^ # /!! #???????????????? | | ?????# # /! #???????????????? | | ?????# + #???????????????? | | ?????# # / #???????????????? | | ?????# ########???????????????? | | ?????# ######??????????????????? | | ?????# # #??????????????????? | | ?????# #??????????????????? | | ?????# # ##??????????????????? | | ?????# #####???????????????????? | | ?????# ##???????????????????????? | | ?????# ########?????????????????? | | ?#####+#### ## ##+?##????????????? | | # # #? #????????????? | | # # #? +????????????? | | # # #? """ #????????????? | | # # #? """ #????????????? | | ###########+### """ #????????????? | | ??????#! # #????????????? | | ??????# """ + ##+#?????????? | | ??????# """ # #?????????? | | ??????# """ # "T" ##????????? | | ??????# # """ #????????? | | ??????######### +????????? | +----------------------------------------------------+ Best States ------------- Heat Dissipation 51 Energy Generation 14 Energy Capacity 280 Matter Stores 300 Matter Capacity 300 Sight Range 16 Terrain Scan Density 10 Armor Coverage 225 Evasion (%) 55 Targeting Accuracy 10 Item Schematics ----------------- None Robot Schematics ------------------ None Fabricated ------------ Nothing Alien Tech Used ----------------- None Achievements -------------- None Challenges ------------ None Game ------ Seed ServoKineticAxe Manual? 0 Play Time 00:17:29 Cumulative 2.4 hours Start 2024.04.23 @ 17:20:47 End 2024.04.23 @ 18:26:54 Sessions 3 Manual Loads 0 Difficulty Rogue Special Mode None Game No. 9 Rogue 9 Adventurer 0 Explorer 0 Win Type - Total 0 Types 0/0/0/0/0/0/0/0/0 Lore% 5 Gallery% 9 Achievement% 8 Wizard Run 0 Options --------- Layout 1 ASCII 0 Keyboard 0 Movement Arrows Keybinds 0 Fullscreen 2 Font 32/SmallcapsGlow Map View 50x35 Zoom Use 0% Tactical HUD 0 Map Filters NONE Filters NONE Steam 1 RUN: 578112ac-e459-4e5c-b986-9bed36baeacd